Cogmind - Beta 14 @@@ ROGUE MODE // 2024.08.15 @ 18:40:20 Player: Gaffe Result: Destroyed by TX-LZH(R) with Subdweller Laser Performance ------------- Evolutions (0) 0 Regions Visited (3) 600 Robots Destroyed (33) 165 Value Destroyed (686) 686 Prototype IDs (0) 0 Alien Tech Used (0) 0 Bonus (0) 0 TOTAL SCORE: 1451 Bonus ------- None Cogmind --------- Core Integrity 0/250 Matter 288/300 Energy 248/250 System Corruption 0% Temperature Cool (6) Movement Rolling (95) Ox1 Location -10/Subcaves Parts ------- > --- POWER (1) -------- Ion Engine > --- PROPULSION (2) --- Wheel Wheel > --- UTILITY (2) ------ Large Storage Unit Signal Interpreter > --- WEAPON (2) ------- Subdweller Machine Gun Subdweller Machine Gun > --- INVENTORY (15) --- Subdweller Power Source Heat Sink Large Storage Unit High-capacity Battery (250) Improved Sensor Array Experimental Sensor Array Seismic Detector ECM Suite Improved Power Shielding Pulse Rifle Light Assault Rifle Minigun Light Cannon Grenade Launcher Mining Laser Peak State ------------ > --- POWER ------------ Nuclear Core > --- PROPULSION ------- Wheel Compact Wheel > --- UTILITY ---------- Large Storage Unit Signal Interpreter > --- WEAPON ----------- Shock Rifle Light Assault Rifle > --- INVENTORY -------- Ion Engine Heat Sink Small Storage Unit Large Storage Unit High-capacity Battery Improved Sensor Array Experimental Sensor Array Seismic Detector ECM Suite EM Pulse Gun Light Assault Rifle Minigun Light Cannon Grenade Launcher Mining Laser [Rating: 13] Favorites ----------- Power Ion Engine Engine Ion Engine Power Core Nuclear Core Propulsion Wheel Leg Aluminum Leg Wheel Wheel Utility Large Storage Unit Device ECM Suite Storage Large Storage Unit Processor Signal Interpreter Weapon Light Assault Rifle Energy Gun Shock Rifle Ballistic Gun Light Assault Rifle Ballistic Cannon Light Cannon Launcher Grenade Launcher Special Weapon Mining Laser Build | -11 -10 -10 -10 ------- Run | Yrd Mat Min Sub Slots Evolved . | . . . . Power . | . . . . Propulsion . | . . . . Utility . | . . . . Weapon . | . . . . Parts Attached 49 | 6 21 14 8 Power 7 | 1 3 2 1 Engine 6 | 1 3 1 1 Core 1 | . . 1 . Reactor . | . . . . Propulsion 12 | 2 7 3 . Treads . | . . . . Leg 1 | . 1 . . Wheel 11 | 2 6 3 . Hover . | . . . . Flight . | . . . . Utility 5 | 1 4 . . Device 1 | . 1 . . Storage 2 | 1 1 . . Processor 2 | . 2 . . Hackware . | . . . . Protection . | . . . . Artifact . | . . . . Weapon 25 | 2 7 9 7 Energy Gun 2 | . 1 1 . Energy Cannon . | . . . . Ballistic Gun 13 | 2 3 4 4 Ballistic Cannon 2 | . 1 1 . Launcher 3 | . . 3 . Special Weapon 5 | . 2 . 3 Impact Weapon . | . . . . Slashing Weapon . | . . . . Piercing Weapon . | . . . . Special Melee Weapon . | . . . . Unidentified Prototypes . | . . . . Parts Lost 8 | . 4 4 . Power 3 | . 2 1 . Propulsion 4 | . 2 2 . Utility . | . . . . Weapon 1 | . . 1 . Highest Loss Streak 4 | . 1 4 . To Critical Strikes 1 | . 1 . . Average Slot Usage (%) 96 | . 94 96 100 Engine 10 | . 13 6 14 Core 3 | . . 6 . Wheel 27 | . 26 27 28 Device 1 | . 4 . . Storage 14 | . 14 14 14 Processor 11 | . 6 14 14 Energy Gun 4 | . 4 6 . Ballistic Gun 16 | . 20 12 19 Ballistic Cannon 4 | . . 6 6 Peak Build Rating 13 | 6 10 13 12 Average Rating 9 | 4 7 10 10 On Entrance 5 | . 6 6 9 Naked Turns . | . . . . Heaviest Build 33 | 12 30 31 33 Greatest Support 32 | 26 32 26 20 Greatest Overweight (x) 7 | . 2 7 1 Average Overweight (x) . | . . 1 1 Largest Inventory Capacity 15 | 8 15 15 15 Average Capacity 13 | 7 10 15 15 Most Carried 15 | . 11 15 15 Average Carried 11 | . 6 13 14 Final Capacity 15 | 8 15 15 15 Final Carried 15 | . 9 13 15 Class Distribution -------------------- 64% | Scavenger-Mutant 35% | Mutant Dominant Class ---------------- Mutant | -10/Materials Scavenger-Mutant | -10/Mines Scavenger-Mutant | -10/Subcaves Resources | -11 -10 -10 -10 ----------- Run | Yrd Mat Min Sub Matter Collected 968 | 190 412 243 123 Remotely . | . . . . Salvage Created 804 | . 482 291 31 Parts 61 | . 28 30 3 Haulers Intercepted . | . . . . Recyclers Shooed . | . . . . Parts Field Recycled . | . . . . Retrieved Matter . | . . . . Parts Self-Destructed 12 | . . . 12 Prevented . | . . . . Kills | -11 -10 -10 -10 ------- Run | Yrd Mat Min Sub Combat Hostiles Destroyed 24 | . 10 13 1 Guns 14 | . 10 3 1 Cannons 4 | . . 4 . AOE 6 | . . 6 . Classes Destroyed 8 | . 5 2 1 Worker 2 | . 1 1 . Builder 2 | . . 2 . Tunneler 2 | . . 2 . Recycler 1 | . 1 . . Watcher 2 | . 2 . . Swarmer 11 | . 2 9 . Grunt 12 | . 8 4 . Sentry 1 | . . . 1 Best Kill Streak 5 | . 3 5 1 Combat Bots Only 3 | . 3 3 1 Max Kills in Single Turn 4 | . 2 4 1 Gunslinging 1 | . 1 . . Exploded 2 | . . 2 . Melee . | . . . . Uniques/NPCs Destroyed . | . . . . Combat | -11 -10 -10 -10 -------- Run | Yrd Mat Min Sub Hostile Shots Fired 151 | . 79 60 12 Missed 46 | . 19 22 5 Damage Taken 1362 | . 723 474 165 Core 256 | . 145 60 51 Absorbed by Shields . | . . . . Regen/Repaired (Parts) 10 | . 10 . . Core Remaining (%) 100 | 100 . . . Volleys Fired 103 | . 60 29 14 Largest 2 | . 2 2 2 Hottest 100 | . 100 70 100 Shots Fired 179 | . 111 47 21 Gun 144 | . 103 27 14 Cannon 16 | . . 16 . Launcher 4 | . . 4 . Special 15 | . 8 . 7 Kinetic 137 | . 88 35 14 Thermal 30 | . 23 . 7 Explosive 4 | . . 4 . Electromagnetic 8 | . . 8 . Robot Hit Streak 10 | . 10 8 7 Robot Miss Streak 3 | . 3 3 2 Penetration Max . | . . . . Secondary Targets 1 | . 1 . . Max Gunslinging Chain 1 | . 1 . . Shots Hit Robots 96 | . 58 28 10 Core Hits 48 | . 26 21 1 Critical Kills . | . . . . Critical Parts Destroyed . | . . . . Critical Strikes 1 | . . 1 . Blast 1 | . . 1 . Melee Attacks . | . . . . Impact . | . . . . Slashing . | . . . . Piercing . | . . . . Sneak Attacks . | . . . . Combat Hostiles . | . . . . Follow-up Attacks . | . . . . Damage Inflicted 1741 | . 744 791 206 Guns 1157 | . 744 207 206 Cannons 177 | . . 177 . Explosions 407 | . . 407 . Melee . | . . . . Ramming . | . . . . Kinetic 1095 | . 602 287 206 Thermal 142 | . 142 . . Explosive 407 | . . 407 . Electromagnetic 97 | . . 97 . Impact . | . . . . Slashing . | . . . . Piercing . | . . . . Highest Corruption . | . . . . Average Corruption . | . . . . Corruption Purged . | . . . . Corruption Blocked . | . . . . Overload Shots . | . . . . Overflow Damage 8 | . . 8 . Projectiles . | . . . . Explosions 8 | . . 8 . Melee . | . . . . Knockbacks 2 | . . 2 . Impact . | . . . . Kinetic 2 | . . 2 . Secondary . | . . . . Self-Inflicted Damage . | . . . . Shots . | . . . . Rammed . | . . . . Targets Rammed . | . . . . Kicked . | . . . . Crushed . | . . . . Highest Temperature 196 | . 196 140 7 Average Temperature 59 | . 58 62 7 Received Heat Transfer 576 | . 324 204 48 Siege Activations . | . . . . Robots Corrupted . | . . . . Combat Hostiles . | . . . . Parts Fried . | . . . . Impact Corruptions . | . . . . Robots Melted . | . . . . Combat Hostiles . | . . . . Parts Melted . | . . . . Heat Transferred 333 | . 333 . . Parts Sabotaged . | . . . . Parts Stolen . | . . . . Parts Stripped . | . . . . Power Chain Reactions . | . . . . Alert | -11 -10 -10 -10 ------- Run | Yrd Mat Min Sub Peak Influence 364 | . 231 364 . Initial 10 | . . 10 . Average 81 | . 46 106 . Maximum Alert Level 1 | . 1 1 . Low Security (%) 91 | 100 99 86 . Level 1 8 | . . 13 . Level 2 . | . . . . Level 3 . | . . . . Level 4 . | . . . . Level 5 . | . . . . High Security . | . . . . Max Security . | . . . . Squads Dispatched 4 | . 3 1 . Investigation 3 | . 2 1 . Extermination . | . . . . Reinforcement 1 | . 1 . . Assault . | . . . . Garrison . | . . . . Intercept . | . . . . Searches Triggered . | . . . . Construction Impeded . | . . . . Haulers Reinforced . | . . . . Active Scanning Responses . | . . . . Cargo Convoy Interrupts . | . . . . Stealth | -11 -10 -10 -10 --------- Run | Yrd Mat Min Sub Distress Signals 3 | . 2 1 . Communications Jammed . | . . . . Distress Signals . | . . . . Times Spotted 37 | . 22 13 2 Peak Tracking Total 5 | . 5 3 1 Tactical Retreats 5 | . 4 1 . Traps | -11 -10 -10 -10 ------- Run | Yrd Mat Min Sub Traps Triggered 2 | . 1 . 1 Indirectly . | . . . . Trap Hack Attempts . | . . . . Triggered . | . . . . Disarmed . | . . . . Reprogrammed . | . . . . Reused . | . . . . Traps Extracted . | . . . . Installed . | . . . . Triggered . | . . . . Machines | -11 -10 -10 -10 ---------- Run | Yrd Mat Min Sub Machines Disabled 2 | . 1 1 . Max in Single Turn 1 | . 1 1 . Machines Repaired . | . . . . Machines Dismantled . | . . . . Machines Sabotaged . | . . . . Overloaded Fab Kills . | . . . . Hacking | -11 -10 -10 -10 --------- Run | Yrd Mat Min Sub Machines Accessed 8 | . 6 2 . Terminals 4 | . 4 . . Fabricators . | . . . . Repair Stations 1 | . 1 . . Recycling Units 1 | . 1 . . Scanalyzers . | . . . . Garrison Access . | . . . . Total Hacks 20 | . 18 2 . Successful 12 | . 10 2 . Failed 8 | . 8 . . Catastrophic . | . . . . Database Lockouts . | . . . . Manual . | . . . . Terminals 8 | . 8 . . Fabricators . | . . . . Repair Stations 4 | . 4 . . Recycling Units 6 | . 6 . . Scanalyzers . | . . . . Garrison Access . | . . . . Terminal Hacks 5 | . 3 2 . Robot Analysis 1 | . 1 . . Open Door 2 | . . 2 . Unreport Threat 1 | . 1 . . Locate Traps 1 | . 1 . . Fabricator Hacks . | . . . . Repair Station Hacks 2 | . 2 . . Scan Component 1 | . 1 . . Repair 1 | . 1 . . Recycling Unit Hacks 5 | . 5 . . Recycle Component 1 | . 1 . . Process 2 | . 2 . . Report Inventory 1 | . 1 . . Retrieve Matter 1 | . 1 . . Scanalyzer . | . . . . Garrison Access Hacks . | . . . . Unauthorized Hacks . | . . . . Terminals . | . . . . Fabricators . | . . . . Repair Stations . | . . . . Recycling Units . | . . . . Scanalyzers . | . . . . Garrison Access . | . . . . Data Cores Recovered . | . . . . Used . | . . . . Hacking Detections 5 | . 5 . . Full Trace Events 2 | . 2 . . Feedback Events . | . . . . Feedback Blocked . | . . . . Robot Schematics Acquired . | . . . . Robots Built . | . . . . Authchips . | . . . . Time . | . . . . Total Robot Build Rating . | . . . . Part Schematics Acquired . | . . . . Parts Built . | . . . . Authchips . | . . . . Time . | . . . . Total Part Build Rating . | . . . . Parts Repaired 1 | . 1 . . Time 26 | . 26 . . Parts Recycled 1 | . 1 . . Recycled Matter 118 | . 118 . . Retrieved Matter 118 | . 118 . . Retrieved Components . | . . . . Parts Scanalyzed . | . . . . Part Schematics Acquired . | . . . . Parts Damaged . | . . . . Bothacking | -11 -10 -10 -10 ------------ Run | Yrd Mat Min Sub Used RIF Installer . | . . . . Robots Hacked . | . . . . Non-combat . | . . . . Combat . | . . . . Robot Hacks Applied . | . . . . Relay Couplers Released . | . . . . Fabnet Peak Effective % . | . . . . Robots Rewired . | . . . . Allies Hacked . | . . . . Hacks Repelled . | . . . . Allies | -11 -10 -10 -10 -------- Run | Yrd Mat Min Sub Total Allies . | . . . . Largest Group . | . . . . Highest-Rated Group . | . . . . Highest-Rated Ally . | . . . . Total Orders . | . . . . Ally Attacks . | . . . . Total Damage . | . . . . Kills . | . . . . Allies Corrupted . | . . . . Allies Melted . | . . . . Intel | -11 -10 -10 -10 ------- Run | Yrd Mat Min Sub Robot Analysis Total 1 | . 1 . . Derelict Logs Recovered 2 | . . 1 1 Drone Launches . | . . . . Drone Recoveries . | . . . . Exploration | -11 -10 -10 -10 ------------- Run | Yrd Mat Min Sub Turns Passed 2922 | 40 925 1465 492 Spaces Moved 1717 | 35 591 644 447 Core 8 | 1 . 7 . Treads . | . . . . Legs 20 | . 20 . . Wheels 1689 | 34 571 637 447 Hover . | . . . . Flight . | . . . . Fastest Speed 50 | 50 90 90 95 Average Speed 101 | 89 102 106 95 Slowest Speed 400 | 100 260 400 95 Overloaded Moves . | . . . . Propulsion Burnouts . | . . . . Robots Hopped . | . . . . Cave-ins Triggered . | . . . . Exploration Rate (%) 57 | 3 92 96 39 Regions Visited 3 Branch Regions 2 Pre-discovered Areas . | . . . . Known Exits Taken 2 | . 1 1 . Unknown Exits Taken 1 | 1 . . . Scrap Searched 1 | . . 1 . Spaces Dug 1 | . 1 . . Terrain Destroyed 18 | . 1 17 . Melee . | . . . . Projectile 1 | . 1 . . AOE 17 | . . 17 . Terrain Rammed . | . . . . Walls Destroyed . | . . . . Machines Disabled . | . . . . Actions | -11 -10 -10 -10 --------- Run | Yrd Mat Min Sub Total 2676 | 40 778 1380 478 Wait 766 | . 88 676 2 Move 1714 | 34 590 643 447 Hop . | . . . . Pick Up 25 | . 13 10 2 Fast Attach 14 | 6 3 3 2 Attach 10 | . 4 5 1 Detach 3 | . 1 2 . Swap 25 | . 14 6 5 Drop 16 | . 5 6 5 Fire 103 | . 60 29 14 Melee . | . . . . Ram . | . . . . Kick . | . . . . Crush . | . . . . Escape Stasis . | . . . . Rewire . | . . . . Trap . | . . . . Miscellaneous . | . . . . Route ------- -11/Scrapyard -10/Materials (discovered 3 exits: *Mat x2 / *Min) -10/Mines (discovered 3 exits: *Mat x2 / *Sub) -10/Subcaves History --------- Turn | Location | Event 17 | -11/Scrapyard | Discovered new exit (range 15) 41 | -11/Scrapyard | Entered Materials 244 | -10/Materials | Discovered new exit (range 4) 314 | -10/Materials | Build established: Mutant 510 | -10/Materials | Core integrity fell below 50% 626 | -10/Materials | Repaired ECM Suite 889 | -10/Materials | Discovered new exit (range 3) 931 | -10/Materials | Discovered new exit (range 18) 966 | -10/Materials | Identified exit to Mines 966 | -10/Materials | Entered Mines 1054 | -10/Mines | YI-UF0 nonchalantly dropped a Grenade Launcher on the ground 1162 | -10/Mines | Found a hidden stash of uninstalled traps 1258 | -10/Mines | Discovered new exit (range 13) 1270 | -10/Mines | Identified exit to Materials 1276 | -10/Mines | Met a Derelict who couldn't figure out how to use a Trap Extractor 1301 | -10/Mines | Build established: Scavenger-Mutant 1337 | -10/Mines | Discovered exit to Materials (range 8) 1406 | -10/Mines | Found a damaged Exp. Sensor Array with a note attached 1410 | -10/Mines | Found Prototype Device 1981 | -10/Mines | Core integrity fell below 20% 2017 | -10/Mines | Lost 4 parts (1p2n1w) 2080 | -10/Mines | Met a Derelict shopkeep closing up shop 2414 | -10/Mines | Discovered new exit (range 6) 2430 | -10/Mines | Identified exit to Subcaves 2431 | -10/Mines | Entered Subcaves 2459 | -10/Subcaves | Learned Materials trap positions 2585 | -10/Subcaves | Shifting Twisted Machinery released Sub. Machine Gun 2586 | -10/Subcaves | Shifting Twisted Machinery released Spk. Treads 2923 | -10/Subcaves | Destroyed by TX-LZH(R) with Subdweller Laser Last Messages --------------- Subatomizers dissect the Disposable Heat Sink. Dropped Mining Laser. Acquired Mining Laser. Dropped Mining Laser. Acquired Mining Laser. Dropped Mining Laser. Acquired Mining Laser. Acquired 47 matter. Subatomizers dissect the Disposable Heat Sink. Critical hit (Burn: +37). Y-45 Defender destroyed. Lgt. Treads fries itself beyond repair. Subatomizers dissect the Heat Sink. Acquired 17 matter. Heat Sink fries itself beyond repair. Acquired 6 matter. Dropped Ion Engine. Acquired 10 matter. Map ----- +----------------------------------------------------+ | #????# #???????????????????????? | | ### # # #??# ##??????????????????????? | | ## #?## ##?????????????????????? | | ##### ### # # #??## ###???????????????????? | | ###?## ##?##### #??## ##??????????????????? | | # ### ##?????? ##??## #??????????????????? | | ## # ##?????? #### #######????????????? | | ## #### # ## ##???????????? | | #???????????? | | #???????????? | | ### # # ###???????????? | | ##??# ######## ## #?????????????? | | ##???? #?????## ### ###???????????? | | ###?????? #????## #?# #???????????? | | #?????????# #???# #?## #???????????? | | #?????????? #???# ??#### #???????????? | | #??????????? ????## #???## #???????????? | | #?????????????????## #### ##???????????? | | #??????????????????#### ## ##???????????? | | #????????????####?????# ##??????????? | | #??????????## ###???# ##?????????? | | #?????????# ##### #?????????? | | # ###?????????### R ####????? | | ## ##?????????????## ##### ## #???? | | ??####???????????????## ## ##????# ### ???? | | ?##???????????????????# @#####?????? # ???? | | #### #?????????????# #????????### # #???? | | #?????????????# ##???????## # ##??? | | ##????????????####????????? #? #??? | | # #??????????????????????????# # #?# #??? | | # #?????????????????????????## ##?# #??? | | ##????????????????????????## #??# ##?? | | #?????????????????????????# ### ### | | #???????????????????????# # | | #????????????????????????#### | | # #???????????????????????????# | | ?## ##??????????????????????????# # | | ??# ##????????????????????????## # | | ??# ?????????????????????### # | | ??# ????????????????????## # | | ?## ???????????????????## # | | ?? ???????????????????# ## | | ?? ????????????????????# ## | | ### ?????????????????????# ## | | #?# ?? ????????????????????# ## | | ### #???? ??????????????????# ## | | ## ###?? ?????????????????## ##?# ="" | | """##? #??????????????????###???## " | | """&## ##???????????????????????###### " | | # "" % #???????????????????????? #?#["# | +----------------------------------------------------+ Best States ------------- Heat Dissipation 25 Energy Generation 14 Energy Capacity 250 Matter Stores 300 Matter Capacity 300 Sight Range 18 Terrain Scan Density 10 ECM Strength 1 Evasion (%) 42 Item Schematics ----------------- None Robot Schematics ------------------ None Fabricated ------------ Nothing Alien Tech Used ----------------- None Achievements -------------- None Challenges ------------ None Game ------ Seed MobileAerolevLeg Manual? 0 Play Time 00:31:46 Cumulative 11.9 hours Start 2024.08.15 @ 18:08:22 End 2024.08.15 @ 18:40:20 Sessions 1 Manual Loads 0 Difficulty Rogue Special Mode None Game No. 17 Rogue 17 Adventurer 0 Explorer 0 Win Type - Total 0 Types 0/0/0/0/0/0/0/0/0 Lore% 8 Gallery% 14 Achievement% 11 Wizard Run 0 Options --------- Layout 1 ASCII 0 Keyboard 0 Movement Mouse Keybinds 0 Fullscreen 2 Font 32/SmallcapsGlow Map View 50x35 Zoom Use 0% Tactical HUD 0 Map Filters NONE Filters NONE Steam 1 RUN: d79f2e52-626f-4819-ae64-205571fb9097